Workbook

Sheet Index
A1: Index
A3: Residuals
A4: Averages
A5: ='T1'!A1 -> Table 1 - Generation Wider Tariffs
A6: ='T2'!A1 -> Table 2 - Local Substation Tariffs
A7: ='T3'!A1 -> Table 3 - Local Circuit Tariffs
A8: ='T4'!A1 -> Table 4 - Offshore Local Tariffs
A9: ='T5'!A1 -> Table 5 - Demand Tariffs
A10: ='T6'!A1 -> Table 6 - Contracted and Modelled TEC
A11: ='T7'!A1 -> Table 7 - Interconnectors
A12: ='T8'!A1 -> Table 8 - Allowed Revenues
A13: ='T9'!A1 -> Table 9 - Generation and Demand Revenue Proportions
A14: ='T10'!A1 -> Table 10 - Charging Bases
A15: ='T11'!A1 -> Table 11 - Residual Calculation
A16: Table 12 - Small Generator Discount
A17: Table 13 - Generation Tariff Changes
A18: Table 14 - circuits subject to one-off charges
A19: Table 15 - Change in HH Demand Tariffs
A20: Table 16 - NHH Demand Tariff Changes
A21: Table 17 - Impact of Change in TNUoS Revenue
A22: Table 18 - Impact of 2% increase in system and HH in demand
A23: Table 19 - National Grid Revenue Forecast
A24: Table 20 - SP Transmission Revenue Forecast
A25: Table 21 - SHE Transmission Revenue Forecast
A26: Table 22 - Offshore Revenues
A27: Table 23 - Generation TEC Changes
A28: Table 24 - Demand Profiles
A29: Table 27 - Demand Tariffs with breakdown of peak security and year round elements
A30: Figure 1 - Variation on Generation Zonal Tariffs
A31: Figure 2 - HH Demand Tariffs
A32: Figure 3 - NHH Demand Tariffs

Sheet Residuals
A1: Residual | B1: 2017/18 Initial | C1: 2017/18 June | D1: 2017/18 Oct | E1: Change
A2: Generation | B2: -0.9200766112 | C2: -2.090499571 | D2: -1.891388077 | E2: =D2-C2 -> 0.1991114938
A3: Demand | B3: 46.34195824 | C3: 47.95488696 | D3: 46.60734586 | E3: =D3-C3 -> -1.347541098
A5: Average Tariff | B5: 2017/18 Initial | C5: 2017/18 June | D5: 2017/18 Oct | E5: Change
A6: Generation (£/kW) | B6: 6.688956818 | C6: 5.823698816 | D6: 5.856726657 | E6: =D6-C6 -> 0.0330278402 | G6: N.B. These generation average tariffs include local tariffs
A7: HH Demand (£/kW) | B7: 47.89086893 | C7: 49.49441609 | D7: 48.24364544 | E7: =D7-C7 -> -1.250770644
A8: NHH Demand (p/kWh) | B8: 6.502384776 | C8: 6.491191041 | D8: 6.325922839 | E8: =D8-C8 -> -0.1652682014

Sheet T1
A1: Table 1 - Generation Wider Tariffs
C3: System Peak | D3: Shared Year Round | E3: Not Shared Year Round | F3: Residual | G3: Conventional 80% | H3: Intermittent 40%
A4: Zone | B4: Zone Name | C4: Tariff (£/kW) | D4: Tariff (£/kW) | E4: Tariff (£/kW) | F4: Tariff (£/kW) | G4: Tariff (£/kW) | H4: Tariff (£/kW)
A5: 1 | B5: North Scotland | C5: 1.394030466 | D5: 11.60389927 | E5: 15.31656557 | F5: -1.891388077 | G5: 24.10232738 | H5: 18.0667372
A6: 2 | B6: East Aberdeenshire | C6: 2.204431088 | D6: 5.341801192 | E6: 15.31656557 | F6: -1.891388077 | G6: 19.90304953 | H6: 15.56189797
A7: 3 | B7: Western Highlands | C7: 0.7171890554 | D7: 9.994388716 | E7: 15.31656557 | F7: -1.891388077 | G7: 22.13787752 | H7: 17.42293298
A8: 4 | B8: Skye and Lochalsh | C8: -5.206177871 | D8: 9.994388716 | E8: 15.1013607 | F8: -1.891388077 | G8: 15.99930572 | H8: 17.20772811
A9: 5 | B9: Eastern Grampian and Tayside | C9: 1.002477654 | D9: 8.824838846 | E9: 14.91874318 | F9: -1.891388077 | G9: 21.08970384 | H9: 16.55729064
A10: 6 | B10: Central Grampian | C10: 3.339207896 | D10: 10.01913327 | E10: 15.7963875 | F10: -1.891388077 | G10: 25.25951393 | H10: 17.91265273
A11: 7 | B11: Argyll | C11: 2.357136992 | D11: 7.725367577 | E11: 24.52781559 | F11: -1.891388077 | G11: 31.17385857 | H11: 25.72657455
A12: 8 | B12: The Trossachs | C12: 2.871184237 | D12: 7.725367577 | E12: 14.00674236 | F12: -1.891388077 | G12: 21.16683258 | H12: 15.20550131
A13: 9 | B13: Stirlingshire and Fife | C13: 0.8725745198 | D13: 3.358134037 | E13: 12.2860715 | F13: -1.891388077 | G13: 13.95376517 | H13: 11.73793703
A14: 10 | B14: South West Scotlands | C14: 3.381714183 | D14: 6.197326216 | E14: 13.1911316 | F14: -1.891388077 | G14: 19.63931868 | H14: 13.77867401
A15: 11 | B15: Lothian and Borders | C15: 3.211676446 | D15: 6.197326216 | E15: 7.957530175 | F15: -1.891388077 | G15: 14.23567952 | H15: 8.545072585
A16: 12 | B16: Solway and Cheviot | C16: 0.3250756105 | D16: 3.208345637 | E16: 6.673837897 | F16: -1.891388077 | G16: 7.674201939 | H16: 6.065788074
A17: 13 | B17: North East England | C17: 3.311573935 | D17: 1.983293807 | E17: 3.861438872 | F17: -1.891388077 | G17: 6.868259775 | H17: 2.763368317
A18: 14 | B18: North Lancashire and The Lakes | C18: 1.650375906 | D18: 1.983293807 | E18: 3.344713441 | F18: -1.891388077 | G18: 4.690336316 | H18: 2.246642887
A19: 15 | B19: South Lancashire, Yorkshire and Humber | C19: 4.011554342 | D19: 0.595552927 | E19: 0.1484112363 | F19: -1.891388077 | G19: 2.745019843 | H19: -1.50475567
A20: 16 | B20: North Midlands and North Wales | C20: 3.599135805 | D20: -0.932524843 | E20: 0 | F20: -1.891388077 | G20: 0.961727853 | H20: -2.264398015
A21: 17 | B21: South Lincolnshire and North Norfolk | C21: 2.214219823 | D21: -0.2724128176 | E21: 0 | F21: -1.891388077 | G21: 0.1049014915 | H21: -2.000353204
A22: 18 | B22: Mid Wales and The Midlands | C22: 1.171540217 | D22: -0.1322104736 | E22: 0 | F22: -1.891388077 | G22: -0.8256162391 | H22: -1.944272267
A23: 19 | B23: Anglesey and Snowdon | C23: 3.730173504 | D23: -1.713016215 | E23: 0 | F23: -1.891388077 | G23: 0.468372454 | H23: -2.576594563
A24: 20 | B24: Pembrokeshire | C24: 8.83711854 | D24: -3.941868806 | E24: 0 | F24: -1.891388077 | G24: 3.792235418 | H24: -3.4681356
A25: 21 | B25: South Wales & Gloucester | C25: 5.882829895 | D25: -4.059813723 | E25: 0 | F25: -1.891388077 | G25: 0.7435908386 | H25: -3.515313567
A26: 22 | B26: Cotswold | C26: 2.8320238 | D26: 2.114618623 | E26: -6.268278036 | F26: -1.891388077 | G26: -3.635947414 | H26: -7.313818663
A27: 23 | B27: Central London | C27: -4.244078119 | D27: 2.114618623 | E27: -5.413107945 | F27: -1.891388077 | G27: -9.856879243 | H27: -6.458648573
A28: 24 | B28: Essex and Kent | C28: -3.705437971 | D28: 2.114618623 | E28: 0 | F28: -1.891388077 | G28: -3.90513115 | H28: -1.045540628
A29: 25 | B29: Oxfordshire, Surrey and Sussex | C29: -0.8572535499 | D29: -2.288585853 | E29: 0 | F29: -1.891388077 | G29: -4.57951031 | H29: -2.806822419
A30: 26 | B30: Somerset and Wessex | C30: -1.358911963 | D30: -3.920907592 | E30: 0 | F30: -1.891388077 | G30: -6.387026114 | H30: -3.459751114
A31: 27 | B31: West Devon and Cornwall | C31: 0.001378116752 | D31: -5.358055477 | E31: 0 | F31: -1.891388077 | G31: -6.176454342 | H31: -4.034610268
C33: Small Generation Discount (£/kW) | F33: -11.178989

Sheet T2
A1: Table 2 - Local Substation Tariffs
A3: Substation Rating | B3: Connection Type | C3: Local Substation Tariff (£/kW)
C4: 132kV | D4: 275kV | E4: 400kV
A5: <1320 MW | B5: No redundancy | C5: 0.184852 | D5: 0.105747 | E5: 0.076193
A6: <1320 MW | B6: Redundancy | C6: 0.407215 | D6: 0.251946 | E6: 0.183236
A7: >=1320 MW | B7: No redundancy | D7: 0.331565 | E7: 0.239788
A8: >=1320 MW | B8: Redundancy | D8: 0.544345 | E8: 0.397326

Sheet T3
A1: Table 3 - Local Circuit Tariffs
A3: Substation Name | B3: (£/kW) | C3: Substation Name | D3: (£/kW) | E3: Substation Name | F3: (£/kW)
A4: Achruach | B4: 3.943946846 | C4: Dinorwig | D4: 2.209015914 | E4: Kilmorack | F4: 0.1818314018
A5: Aigas | B5: 0.6021615189 | C5: Dunlaw Extension | D5: 5.472225976 | E5: Langage | F5: 0.6054101066
A6: An Suidhe | B6: 2.822439983 | C6: Brochlock | D6: 1.973735407 | E6: Lochay | F6: 0.3369225782
A7: Arecleoch | B7: 1.912237374 | C7: Dumnaglass | D7: 0.5862867245 | E7: Luichart | F7: 0.5284816152
A8: Baglan Bay | B8: 0.7002227871 | C8: Edinbane | D8: -6.297984417 | E8: Mark Hill | F8: 0.8061330397
A9: Beinneun Wind Farm | B9: 1.383315178 | C9: Earlshaugh Wind Farm | D9: 3.467450311 | E9: Margree | F9: 3.344345217
A10: Bhlaraidh Wind Farm | B10: 0.5944502242 | C10: Ewe Hill | D10: 1.265215004 | E10: Marchwood | F10: 0.3516419225
A11: Black Hill | B11: 1.188900448 | C11: Farr Windfarm | D11: 2.067999785 | E11: Millennium Wind | F11: 1.681969533
A12: BlackCraig Wind Farm | B12: 3.597037151 | C12: Fallago | D12: 0.5523770008 | E12: Moffat | F12: 0.1545727835
A13: Black Law | B13: 1.608805311 | C13: Carraig Gheal | D13: 4.049981444 | E13: Mossford | F13: 2.651426801
A14: BlackLaw Extension | B14: 3.411679907 | C14: Ffestiniogg | D14: 0.2329353229 | E14: Nant | F14: 2.310715859
A15: Bodelwyddan | B15: 0.1059349775 | C15: Finlarig | D15: 0.2948072559 | E15: Necton | F15: 1.035499296
A16: Carrington | B16: -0.03372955124 | C16: Foyers | D16: 0.6932744141 | E16: Rhigos | F16: 0.09343333195
A17: Clyde (North) | B17: 0.1009701989 | C17: Galawhistle | D17: 0.7792117804 | E17: Rocksavage | F17: 0.01628807791
A18: Clyde (South) | B18: 0.1167671494 | C18: Glendoe | D18: 1.693549845 | E18: Saltend | F18: 0.31390563
A19: Corriegarth | B19: 3.470125049 | C19: Ulziside | D19: 9.650990616 | E19: South Humber Bank | F19: 0.8672225295
A20: Corriemoillie | B20: 1.53226953 | C20: Gordonbush | D20: 0.3764242703 | E20: Spalding | F20: 0.255195479
A21: Coryton | B21: 0.04776604943 | C21: Griffin Wind | D21: -0.8464320435 | E21: Kilbraur | F21: 0.2377167132
A22: Cruachan | B22: 1.678508188 | C22: Hadyard Hill | D22: 2.548396783 | E22: Stronelairg | F22: 1.333700731
A23: Crystal Rig | B23: 0.472437164 | C23: Harestanes | D23: 2.306665752 | E23: Strathy Wind | F23: 2.020424979
A24: Culligran | B24: 1.59574215 | C24: Hartlepool | D24: 0.5535113002 | E24: Wester Dodds | F24: 0.7857284984
A25: Deanie | B25: 2.621576389 | C25: Hedon | D25: 0.1665822301 | E25: Whitelee | F25: 0.09771309572
A26: Dersalloch | B26: 2.217789056 | C26: Invergarry | D26: 1.30652636 | E26: Whitelee Extension | F26: 0.2716424061
A27: Didcot | B27: 0.4809419908 | C27: Kilgallioch | D27: 0.9689881992

Sheet T4
A1: Table 4 - Offshore Local Tariffs
A3: Offshore Generator | B3: Tariff Component (£/kW)
B4: Substation | C4: Circuit | D4: ETUoS
A5: Barrow | B5: 7.448979 | C5: 38.973051 | D5: 0.967754
A6: Greater Gabbard | B6: 13.96595988 | C6: 32.09240062 | D6: 0
A7: Gunfleet | B7: 16.121201 | C7: 14.800525 | D7: 2.766304
A8: Gwynt Y Mor | B8: 17.008304 | C8: 16.755281 | D8: 0
A9: Lincs | B9: 13.92090714 | C9: 54.50353313 | D9: 0
A10: London Array | B10: 9.476326821 | C10: 32.27584159 | D10: 0
A11: Ormonde | B11: 23.028243 | C11: 42.899459 | D11: 0.341873
A12: Robin Rigg East | B12: =+B13 -> -0.425991 | C12: =+C13 -> 28.218287 | D12: =+D13 -> 8.746146
A13: Robin Rigg West | B13: -0.425991 | C13: 28.218287 | D13: 8.746146
A14: Sheringham Shoal | B14: 22.24927337 | C14: 26.09318573 | D14: 0.5671891651
A15: Thanet | B15: 16.94363017 | C15: 31.57203931 | D15: 0.7600504799
A16: Walney 1 | B16: 19.874465 | C16: 39.579946 | D16: 0
A17: Walney 2 | B17: 19.729924 | C17: 39.928647 | D17: 0
A18: West of Duddon Sands | B18: 7.66901335 | C18: 37.84182832 | D18: 0
A19: Westermost Rough | B19: 16.14836477 | C19: 27.31612283 | D19: 0
A20: Humber Gateway | B20: 13.53472168 | C20: 30.53884305 | D20: 0

Sheet T5
A1: Table 5 - Demand Tariffs
A3: Zone | B3: Zone Name | C3: HH Demand Tariff (£/kW) | D3: NHH Demand Tariff (p/kWh)
A4: 1 | B4: Northern Scotland | C4: 29.3662062 | D4: 4.984320752
A5: 2 | B5: Southern Scotland | C5: 30.19345922 | D5: 4.830923731
A6: 3 | B6: Northern | C6: 39.07202456 | D6: 5.745988806
A7: 4 | B7: North West | C7: 44.54966316 | D7: 6.07577955
A8: 5 | B8: Yorkshire | C8: 44.27025872 | D8: 5.941972605
A9: 6 | B9: N Wales & Mersey | C9: 46.50179817 | D9: 7.006964533
A10: 7 | B10: East Midlands | C10: 47.30931231 | D10: 6.551381327
A11: 8 | B11: Midlands | C11: 49.06097975 | D11: 6.536145101
A12: 9 | B12: Eastern | C12: 48.83936776 | D12: 6.871609021
A13: 10 | B13: South Wales | C13: 45.22031432 | D13: 5.969316834
A14: 11 | B14: South East | C14: 51.68580042 | D14: 6.752683972
A15: 12 | B15: London | C15: 54.13916813 | D15: 6.946148536
A16: 13 | B16: Southern | C16: 52.82110778 | D16: 6.828226208
A17: 14 | B17: South Western | C17: 51.61448046 | D17: 6.868097906

Sheet T6
A1: Table 6 - Contracted and Modelled TEC
A3: (GW) | B3: 2016/17 | C3: 2017/18 Initial forecast | D3: 2017/18 June Forecast | E3: 2017/18 Oct Forecast | F3: 2017/18 Draft Tariffs | G3: 2017/18 Final Tariffs
A4: Contracted TEC | B4: 69.86496 | C4: 73.44216 | D4: 73.09276 | E4: 72.15866
A5: Modelled Best ViewTEC | B5: 69.86496 | C5: 71.09486 | D5: 73.79686 | E5: 72.54446

Sheet T7
A1: Table 7 - Interconnectors
A3: Interconnector | B3: Site | C3: Interconnected System | D3: Generation Zone | E3: Transport Model (Generation MW) Peak | F3: Transport Model (Generation MW) Year Round | G3: Charging Base (Generation MW)
A4: IFA Interconnector | B4: Sellindge 400kV | C4: France | D4: 24 | E4: 0 | F4: 2000 | G4: 0
A5: ElecLink | B5: Sellindge 400kV | C5: France | D5: 24 | E5: 0 | F5: 1000 | G5: 0
A6: Britned | B6: Grain 400kV | C6: Netherlands | D6: 24 | E6: 0 | F6: 1200 | G6: 0
A7: East - West | B7: Deesside 400kV | C7: Republic of Ireland | D7: 16 | E7: 0 | F7: 505 | G7: 0
A8: Moyle | B8: Auchencrosh 275kV | C8: Northern Ireland | D8: 10 | E8: 0 | F8: 80 | G8: 0

Sheet T8
A1: Table 8 - Allowed Revenues
A3: £m Nominal Value | B3: 2016/17 TNUoS Revenue | C3: 2017/18 TNUoS Revenue
B4: Jan 2016 Final | C4: Feb 2016 Initial View | D4: June 2016 Update | E4: Oct 2016 Update | F4: Dec 2016 Draft | G4: Jan 2017 Final
A5: National Grid
A6: Price controlled revenue | B6: 1828.226523 | C6: 1806.448339 | D6: 1811.214837 | E6: 1750.427808
A7: Less income from connections | B7: 42.67704326 | C7: 46.49711116 | D7: 46.49711116 | E7: 44.09
A8: Income from TNUoS | B8: 1785.549479 | C8: 1759.951228 | D8: 1764.717726 | E8: 1706.337808
A10: Scottish Power Transmission
A11: Price controlled revenue | B11: 306.44 | C11: 347.0504075 | D11: 340.9657044 | E11: 327.6590792
A12: Less income from connections | B12: 11.816 | C12: 13.91222571 | D12: 13.97135212 | E12: 11.368
A13: Income from TNUoS | B13: 294.624 | C13: 333.1381818 | D13: 326.9943522 | E13: 316.2910792
A15: SHE Transmission
A16: Price controlled revenue | B16: 326.217 | C16: 328.5129843 | D16: 327.2822279 | E16: 305.83432
A17: Less income from connections | B17: 3.38 | C17: 3.589031814 | D17: 3.589042111 | E17: -13.60783907
A18: Income from TNUoS | B18: 322.837 | C18: 324.9239525 | D18: 323.6931858 | E18: 319.4421591
A20: Offshore | B20: 260.7893126 | C20: 276.5028564 | D20: 279.235244 | E20: 293.0215591
A21: Network Innovation Competition | B21: 44.85487989 | C21: 40.5 | D21: 40.5 | E21: 40.5
A22: Total to Collect from TNUoS | B22: 2708.654672 | C22: 2735.016218 | D22: 2735.140508 | E22: 2675.592605

Sheet T9
A1: Table 9 - Generation and Demand Revenue Proportions
C3: 2016/17 | D3: 2017/18 Initial | E3: 2017/18 June | F3: 2017/18 Oct
A4: CAPEC | B4: Limit on generation tariff (€/MWh) | C4: 2.5 | D4: 2.5 | E4: 2.5 | F4: 2.5
A5: y | B5: Error Margin | C5: 0.082 | D5: 0.082 | E5: 0.21 | F5: 0.21
A6: ER | B6: Exchange Rate (€/£) | C6: 1.36 | D6: 1.34 | E6: 1.27 | F6: 1.27
A7: MAR | B7: Total Revenue (£m) | C7: 2708.653351 | D7: 2735.016218 | E7: 2735.140399 | F7: 2675.592605
A8: GO | B8: Generation Output (TWh) | C8: 268.69725 | D8: 262.66675 | E8: 250.95 | F8: 250.95
A9: G | B9: % of revenue from generation | C9: 0.1673992758 | D9: =D8*D4*(1-D5)/(D7*D6) -> 0.1644837831 | E9: =E8*E4*(1-E5)/(E7*E6) -> 0.1426825804 | F9: =F8*F4*(1-F5)/(F7*F6) -> 0.1458581135
A10: D | B10: % of revenue from demand | C10: 0.8326007242 | D10: =1-D9 -> 0.8355162169 | E10: =1-E9 -> 0.8573174196 | F10: =1-F9 -> 0.8541418865
A11: G.R | B11: Revenue recovered from generation (£m) | C11: 453.4266094 | D11: =D9*D7 -> 449.8658144 | E11: =E9*E7 -> 390.2568898 | F11: =F9*F7 -> 390.2568898
A12: D.R | B12: Revenue recovered from demand (£m) | C12: 2255.226742 | D12: =D7*D10 -> 2285.150404 | E12: =E7*E10 -> 2344.883509 | F12: =F7*F10 -> 2285.335715

Sheet T10
A1: Table 10 - Charging Bases
A3: Charging Base | B3: 2016/17 | C3: 2017/18 Initial | D3: 2017/18 June | E3: 2017/18 Oct
A4: Generation (GW) | B4: 62.85886 | C4: 67.25500353 | D4: 67.01186 | E4: 66.63396
A5: Total Average Triad (GW) | B5: 49.8 | C5: 49.29773806 | D5: 49.100818 | E5: 49.100818
A6: HH Demand Average Triad (GW) | B6: 13.1005 | C6: 16.29986949 | D6: 16.40720511 | E6: 16.40720511
A7: NHH Demand (4pm-7pm TWh) | B7: 26.146825 | C7: 23.13821071 | D7: 23.61382469 | E7: 23.61382469

Sheet T11
A1: Table 11 - Residual Calculation
C3: 2016/17 | D3: 2017/18 Initial | E3: 2017/18 June | F3: 2017/18 October
A4: RG | B4: Generator residual tariff (£/kW) | C4: 0.5057806382 | D4: =((D8*D6)-D9-D11-D12-D13)/D14 -> -0.9200766112 | E4: =((E8*E6)-E9-E11-E12-E13)/E14 -> -2.090499338 | F4: =((F8*F6)-F9-F11-F12-F13)/F14 -> -1.891388077
A5: RD | B5: Demand residual tariff (£/kW) | C5: 45.33384785 | D5: =((D8*D7)-D10)/D15 -> 46.34195824 | E5: =((E8*E7)-E10)/E15 -> 47.95488887 | F5: =((F8*F7)-F10)/F15 -> 46.60734586
A6: G | B6: Proportion of revenue recovered from generation (%) | C6: 0.1673992758 | D6: ='T9'!D9 -> 0.1644837831 | E6: ='T9'!E9 -> 0.1426825804 | F6: ='T9'!F9 -> 0.1458581135
A7: D | B7: Proportion of revenue recovered from demand (%) | C7: 0.8326007242 | D7: ='T9'!D10 -> 0.8355162169 | E7: ='T9'!E10 -> 0.8573174196 | F7: ='T9'!F10 -> 0.8541418865
A8: R | B8: Total TNUoS revenue (£m) | C8: 2708.654672 | D8: ='T8'!C22 -> 2735.016218 | E8: ='T8'!D22 -> 2735.140508 | F8: ='T8'!E22 -> 2675.592605
A9: ZG | B9: Revenue recovered from the locational element of generator tariffs (£m) | C9: 191.8863667 | D9: 266.2522768 | E9: 275.3015047 | F9: 258.922957
A10: ZD | B10: Revenue recovered from the locational element of demand tariffs (£m) | C10: -2.397781446 | D10: 0.5966855747 | E10: -9.740667617 | F10: -3.123091263
A11: O | B11: Revenue recovered from offshore local tariffs (£m) | C11: 200.5761521 | D11: 212.9071994 | E11: 223.3881952 | F11: 225.0802402
A12: LG | B12: Revenue recovered from onshore local substation tariffs (£m) | C12: 15.91648199 | D12: 17.03258028 | E12: 17.61158689 | F12: 17.64770464
A13: SG | B13: Revenue recovered from onshore local circuit tariffs (£m) | C13: 13.25503537 | D13: 15.55351362 | E13: 14.04386755 | F13: 14.63666539
A14: BG | B14: Generator charging base (GW) | C14: 62.85886 | D14: 67.25500353 | E14: 67.01186 | F14: 66.63396
A15: BD | B15: Demand charging base (GW) | C15: 49.8 | D15: 49.29773806 | E15: 49.100818 | F15: 49.100818

Sheet T12
A1: Table 12 - Small Generator Discount
A3: Small Generator Discount Calculation
A4: Generator Residual (£/kW) | B4: G | C4: -1.891388077
A5: Demand Residual (£/kW) | B5: D | C5: 46.60734586
A6: Small Generator Discount (£/kW) | B6: T = (G + D)/4 | C6: 11.178989
A7: Forecast Small Generator Volume (kW) | B7: V | C7: 2319260
A8: 2017/18 SGD cost (£) | B8: V x T | C8: =+C7*C6 -> 25926982.03
A9: Prior year reconcilation (£) | B9: R | C9: 0
A10: Total SGD Cost (£) | B10: C = (V x T) + R | C10: =C8+C9 -> 25926982.03
A11: Total System Triad Demand (kW) | B11: TD | C11: 49100818
A12: Total HH Triad Demand (kW) | B12: HHD | C12: 16407205.11
A13: Total NHH Consumption (kWh) | B13: NHHD | C13: 2.361382469e+10
A14: Increase in HH Demand tariff (£/kW) | B14: HHT = C/TD | C14: =+C10/C11 -> 0.5280356435
A15: Total Cost to HH Customers (£) | B15: HHC = HHT * HHD | C15: =+C14*C12 -> 8663589.107
A16: Increase in NHH Demand tariff (p/kWh) | B16: NHHT = (C - HHC)/NHHD | C16: =100*(+C10-(+C14*C12))/(C13) -> 0.07310714442
A17: Total Cost to NHH Customers (£) | B17: NHHC = NHHT * NHHD | C17: =(+C16*C13)/100 -> 17263392.92

Sheet T13 & Fig 1
A1: Table 13 - Generation Tariff Changes | J1: Figure 1 - Variation on Generation Zonal Tariffs
A4: Wider Generation Tariffs (£/kW)
C5: Conventional 80% | F5: Intermittent 40% | I5: Change in Residual (£/kW)
A6: Zone | B6: Zone Name | C6: 2017/18 June Forecast (£/kW) | D6: 2017/18 Oct Forecast (£/kW) | E6: Change (£/kW) | F6: 2017/18 June Forecast (£/kW) | G6: 2017/18 Oct Forecast (£/kW) | H6: Change (£/kW)
A7: 1 | B7: North Scotland | C7: 23.39315465 | D7: 24.10232738 | E7: =D7-C7 -> 0.7091727252 | F7: 19.13142536 | G7: 18.0667372 | H7: =G7-F7 -> -1.064688154 | I7: 0.1991114938
A8: 2 | B8: East Aberdeenshire | C8: 19.5166767 | D8: 19.90304953 | E8: 0.3863728363 | F8: 16.58317459 | G8: 15.56189797 | H8: -1.021276623 | I8: =+I7 -> 0.1991114938
A9: 3 | B9: Western Highlands | C9: 21.82136183 | D9: 22.13787752 | E9: 0.3165156889 | F9: 18.31681536 | G9: 17.42293298 | H9: -0.8938823801 | I9: =+I8 -> 0.1991114938
A10: 4 | B10: Skye and Lochalsh | C10: 15.8173818 | D10: 15.99930572 | E10: 0.1819239222 | F10: 18.02448507 | G10: 17.20772811 | H10: -0.8167569582 | I10: 0.1991114938
A11: 5 | B11: Eastern Grampian and Tayside | C11: 21.33311299 | D11: 21.08970384 | E11: -0.2434091581 | F11: 17.90669246 | G11: 16.55729064 | H11: -1.349401815 | I11: 0.1991114938
A12: 6 | B12: Central Grampian | C12: 24.92937115 | D12: 25.25951393 | E12: 0.3301427851 | F12: 18.85118116 | G12: 17.91265273 | H12: -0.9385284288 | I12: 0.1991114938
A13: 7 | B13: Argyll | C13: 30.95103112 | D13: 31.17385857 | E13: 0.222827448 | F13: 26.79154261 | G13: 25.72657455 | H13: -1.064968063 | I13: 0.1991114938
A14: 8 | B14: The Trossachs | C14: 20.77282793 | D14: 21.16683258 | E14: 0.3940046506 | F14: 16.20023956 | G14: 15.20550131 | H14: -0.9947382508 | I14: 0.1991114938
A15: 9 | B15: Stirlingshire and Fife | C15: 13.62490169 | D15: 13.95376517 | E15: 0.3288634744 | F15: 12.56945191 | G15: 11.73793703 | H15: -0.8315148821 | I15: 0.1991114938
A16: 10 | B16: South West Scotlands | C16: 19.25237375 | D16: 19.63931868 | E16: 0.3869449345 | F16: 14.92747248 | G16: 13.77867401 | H16: -1.148798469 | I16: 0.1991114938
A17: 11 | B17: Lothian and Borders | C17: 14.89230913 | D17: 14.23567952 | E17: -0.6566296174 | F17: 9.354891507 | G17: 8.545072585 | H17: -0.8098189229 | I17: 0.1991114938
A18: 12 | B18: Solway and Cheviot | C18: 9.254872271 | D18: 7.674201939 | E18: -1.580670331 | F18: 7.145676116 | G18: 6.065788074 | H18: -1.079888042 | I18: 0.1991114938
A19: 13 | B19: North East England | C19: 7.646710566 | D19: 6.868259775 | E19: -0.7784507908 | F19: 3.206349656 | G19: 2.763368317 | H19: -0.4429813391 | I19: 0.1991114938
A20: 14 | B20: North Lancashire and The Lakes | C20: 4.104100789 | D20: 4.690336316 | E20: 0.5862355265 | F20: 1.668558665 | G20: 2.246642887 | H20: 0.5780842215 | I20: 0.1991114938
A21: 15 | B21: South Lancashire, Yorkshire and Humber | C21: 2.977959004 | D21: 2.745019843 | E21: -0.2329391618 | F21: -1.697257413 | G21: -1.50475567 | H21: 0.1925017424 | I21: 0.1991114938
A22: 16 | B22: North Midlands and North Wales | C22: 1.077585891 | D22: 0.961727853 | E22: -0.1158580384 | F22: -2.329174967 | G22: -2.264398015 | H22: 0.06477695236 | I22: 0.1991114938
A23: 17 | B23: South Lincolnshire and North Norfolk | C23: -0.3286598092 | D23: 0.1049014915 | E23: 0.4335613007 | F23: -2.101015432 | G23: -2.000353204 | H23: 0.1006622276 | I23: 0.1991114938
A24: 18 | B24: Mid Wales and The Midlands | C24: -0.9696167377 | D24: -0.8256162391 | E24: 0.1440004986 | F24: -2.009076037 | G24: -1.944272267 | H24: 0.06480377015 | I24: 0.1991114938
A25: 19 | B25: Anglesey and Snowdon | C25: 0.9338838059 | D25: 0.468372454 | E25: -0.4655113519 | F25: -2.310597814 | G25: -2.576594563 | H25: -0.2659967493 | I25: 0.1991114938
A26: 20 | B26: Pembrokeshire | C26: 3.060788452 | D26: 3.792235418 | E26: 0.7314469657 | F26: -3.805543735 | G26: -3.4681356 | H26: 0.3374081351 | I26: 0.1991114938
A27: 21 | B27: South Wales & Gloucester | C27: 0.3513890902 | D27: 0.7435908386 | E27: 0.3922017484 | F27: -3.784243799 | G27: -3.515313567 | H27: 0.2689302323 | I27: 0.1991114938
A28: 22 | B28: Cotswold | C28: -3.781164536 | D28: -3.635947414 | E28: 0.1452171217 | F28: -7.403559668 | G28: -7.313818663 | H28: 0.08974100483 | I28: 0.1991114938
A29: 23 | B29: Central London | C29: -10.38324799 | D29: -9.856879243 | E29: 0.5263687513 | F29: -6.785865315 | G29: -6.458648573 | H29: 0.3272167414 | I29: 0.1991114938
A30: 24 | B30: Essex and Kent | C30: -4.282570243 | D30: -3.90513115 | E30: 0.3774390933 | F30: -1.354322674 | G30: -1.045540628 | H30: 0.3087820466 | I30: 0.1991114938
A31: 25 | B31: Oxfordshire, Surrey and Sussex | C31: -5.659312079 | D31: -4.57951031 | E31: 1.079801769 | F31: -3.219404352 | G31: -2.806822419 | H31: 0.4125819334 | I31: 0.1991114938
A32: 26 | B32: Somerset and Wessex | C32: -6.72796907 | D32: -6.387026114 | E32: 0.3409429562 | F32: -3.723705512 | G32: -3.459751114 | H32: 0.2639543983 | I32: 0.1991114938
A33: 27 | B33: West Devon and Cornwall | C33: -6.397901254 | D33: -6.176454342 | E33: 0.2214469118 | F33: -4.27062514 | G33: -4.034610268 | H33: 0.2360148715 | I33: 0.1991114938

Sheet T14
A1: Table 14 - Circuits subject to one-off charges
A3: Node 1 | B3: Node 2 | C3: Actual Parameters | D3: Amendment in Transport Model | E3: Generator
A4: Wishaw 132kV | B4: Blacklaw 132kV | C4: 11.46km of Cable | D4: 11.46km of OHL | E4: Blacklaw
A5: East Kilbride South 275kV | B5: Whitelee 275kV | C5: 6km of Cable | D5: 6km of OHL | E5: Whitelee
A6: East Kilbride South 275kV | B6: Whitelee Extension 275kV | C6: 16.68km of Cable | D6: 16.68km of OHL | E6: Whitelee Extension
A7: Elvanfoot 275kV | B7: Clyde North 275kV | C7: 6.2km of Cable | D7: 6.2km of OHL | E7: Clyde North
A8: Elvanfoot 275kV | B8: Clyde South 275kV | C8: 7.17km of Cable | D8: 7.17km of OHL | E8: Clyde South
A9: Crystal Rig 132kV | B9: Western Dod 132kV | C9: 3.9km of Cable | D9: 3.9km of OHL | E9: Aikengall II
A10: Farigaig 132kV | B10: Dunmaglass 132kV | C10: 4km Cable | D10: 4km OHL | E10: Dunmaglass
A11: Coalburn 132kV | B11: Galawhistle 132kV | C11: 9.7km cable | D11: 9.7km OHL | E11: Galawhistle II
A12: Melgarve 132kV | B12: Stronelairg 132kV | C12: 10km cable | D12: 10km OHL | E12: Stronelairg
A13: Moffat 132kV | B13: Harestanes 132kV | C13: 15.33km cable | D13: 15.33km OHL | E13: Harestanes

Sheet T15 & Fig 2
A1: Table 15 - Change in HH Demand Tariffs | H1: Figure 2 - HH Demand Tariffs
A3: Zone | B3: Zone Name | C3: 2017/18 June (£/kW) | D3: 2017/18 Oct (£/kW) | E3: Change (£/kW) | F3: Change in Residual (£/kW)
A4: 1 | B4: Northern Scotland | C4: 30.95359348 | D4: 29.3662062 | E4: =D4-C4 -> -1.587387287 | F4: -1.347541098
A5: 2 | B5: Southern Scotland | C5: 30.87971504 | D5: 30.19345922 | E5: -0.6862558129 | F5: =+F4 -> -1.347541098
A6: 3 | B6: Northern | C6: 39.40167617 | D6: 39.07202456 | E6: -0.3296516065 | F6: =+F5 -> -1.347541098
A7: 4 | B7: North West | C7: 45.47160489 | D7: 44.54966316 | E7: -0.9219417283 | F7: -1.347541098
A8: 5 | B8: Yorkshire | C8: 45.33033123 | D8: 44.27025872 | E8: -1.060072505 | F8: -1.347541098
A9: 6 | B9: N Wales & Mersey | C9: 47.19885427 | D9: 46.50179817 | E9: -0.6970561057 | F9: -1.347541098
A10: 7 | B10: East Midlands | C10: 48.57516217 | D10: 47.30931231 | E10: -1.265849861 | F10: -1.347541098
A11: 8 | B11: Midlands | C11: 50.03651602 | D11: 49.06097975 | E11: -0.9755362741 | F11: -1.347541098
A12: 9 | B12: Eastern | C12: 50.50277143 | D12: 48.83936776 | E12: -1.663403672 | F12: -1.347541098
A13: 10 | B13: South Wales | C13: 47.16595445 | D13: 45.22031432 | E13: -1.945640133 | F13: -1.347541098
A14: 11 | B14: South East | C14: 53.4748695 | D14: 51.68580042 | E14: -1.789069071 | F14: -1.347541098
A15: 12 | B15: London | C15: 55.95345715 | D15: 54.13916813 | E15: -1.814289015 | F15: -1.347541098
A16: 13 | B16: Southern | C16: 54.45443949 | D16: 52.82110778 | E16: -1.633331716 | F16: -1.347541098 | H16: Table 14
A17: 14 | B17: South Western | C17: 53.04657315 | D17: 51.61448046 | E17: -1.432092698 | F17: -1.347541098

Sheet T16 & Fig 3
A1: Table 16 - NHH Demand Tariff Changes | G1: Figure 3 - NHH Demand Tariffs
A3: Zone | B3: Zone Name | C3: 2017/18 June (p/kWh) | D3: 2017/18 October (p/kWh) | E3: Change (p/kWh)
A4: 1 | B4: Northern Scotland | C4: 5.251831713 | D4: 4.984320752 | E4: =D4-C4 -> -0.2675109603 | G4: 0
A5: 2 | B5: Southern Scotland | C5: 4.939041945 | D5: 4.830923731 | E5: =D5-C5 -> -0.1081182146
A6: 3 | B6: Northern | C6: 5.793732565 | D6: 5.745988806 | E6: -0.04774375965
A7: 4 | B7: North West | C7: 6.201678794 | D7: 6.07577955 | E7: -0.1258992438
A8: 5 | B8: Yorkshire | C8: 6.084581624 | D8: 5.941972605 | E8: -0.1426090182
A9: 6 | B9: N Wales & Mersey | C9: 7.110998707 | D9: 7.006964533 | E9: -0.1040341733
A10: 7 | B10: East Midlands | C10: 6.726673732 | D10: 6.551381327 | E10: -0.1752924055
A11: 8 | B11: Midlands | C11: 6.666523967 | D11: 6.536145101 | E11: -0.1303788666
A12: 9 | B12: Eastern | C12: 7.105486224 | D12: 6.871609021 | E12: -0.2338772021
A13: 10 | B13: South Wales | C13: 6.226581772 | D13: 5.969316834 | E13: -0.2572649381
A14: 11 | B14: South East | C14: 6.986978681 | D14: 6.752683972 | E14: -0.2342947082
A15: 12 | B15: London | C15: 7.179652666 | D15: 6.946148536 | E15: -0.2335041305
A16: 13 | B16: Southern | C16: 7.040039368 | D16: 6.828226208 | E16: -0.2118131609
A17: 14 | B17: South Western | C17: 7.059062715 | D17: 6.868097906 | E17: -0.1909648098

Sheet T17 and T18 Sensitivities
B1: Sensitivities
B3: Table 17 – Impact of change in TNUoS Revenue | F3: Table 18 - Impact of 2% increase in system and HH in demand
B5: £50m increase in revenue recovered from TNUoS | F5: Change in Demand | H5: Change in Tariff
B6: Change in Generation Tariffs (£/kW) | C6: 0 | F6: Peak Demand (MW) | G6: 982
B7: Change in HH Demand Tariffs (£/kW) | C7: 1.02 | F7: HH Demand (MW) | G7: 328 | H7: HH Tariff (£/kW) | I7: -0.94
B8: Change in NHH Demand Tariffs (p/kWh) | C8: 0.14 | F8: NHH Demand (TWh) | G8: 0 | H8: NHH Tariff (£/kWh) | I8: 0

Sheet T19
A1: Table 19 - National Grid Revenue Forecast
D3: 2016-10-01
A4: Description | C4: Licence Term | D4: Yr t-1 | E4: Yr t | F4: Yr t+1 | H4: Notes
A5: Regulatory Year | D5: 2014/15 | E5: 2015/16 | F5: 2016/17 | G5: 2017/18
A6: Actual RPI | D6: 256.6666667 | H6: April to March average
A7: RPI Actual | C7: RPIAt | D7: 1.19 | H7: Office of National Statistics
A8: Assumed Interest Rate | C8: It | D8: 0.005 | E8: 0.007 | F8: 0.95 | G8: 0.002 | H8: Bank of England Base Rate
A9: Opening Base Revenue Allowance (2009/10 prices) | B9: A1 | C9: PUt | D9: 1443.829 | E9: 1475.593 | F9: 1571.387 | G9: 1554.942 | H9: From Licence
A10: Price Control Financial Model Iteration Adjustment | B10: A2 | C10: MODt | D10: -5.5 | E10: -114.4 | F10: -185.4 | G10: -250 | H10: Determined by Ofgem/Licensee forecast
A11: RPI True Up | B11: A3 | C11: TRUt | D11: -0.5272879137 | E11: 4.701911301 | F11: -19.92143138 | G11: -31.40496473 | H11: Licensee Actual/Forecast
A12: Prior Calendar Year RPI Forecast | C12: GRPIFc-1 | D12: 0.031 | E12: 0.025 | F12: 0.01 | G12: 0.017 | H12: HM Treasury Forecast then 2.8%
A13: Current Calendar Year RPI Forecast | C13: GRPIFc | D13: 0.031 | E13: 0.024 | F13: 0.021 | G13: 0.028 | H13: HM Treasury Forecast then 2.8%
A14: Next Calendar Year RPI forecast | C14: GRPIFc+1 | D14: 0.03 | E14: 0.032 | F14: 0.03 | G14: 0.03 | H14: HM Treasury Forecast then 2.8%
A15: RPI Forecast | B15: A4 | C15: RPIFt | D15: 1.2051 | E15: 1.226652821 | F15: 1.233 | G15: 1.261 | H15: Using HM Treasury Forecast
A16: Base Revenue [A=(A1+A2+A3)*A4] | B16: A | C16: BRt | D16: 1732.694843 | E16: 1675.478846 | F16: 1684.358846 | G16: 1605.930201
A17: Pass-Through Business Rates | B17: B1 | C17: RBt | E17: 1.23533081 | F17: 1.500117926 | G17: 2.668267947 | H17: Licensee Actual/Forecast
A18: Temporary Physical Disconnection | B18: B2 | C18: TPDt | D18: 0.1439533986 | E18: 0.0123376894 | F18: 0.09047836118 | G18: 0 | H18: Licensee Actual/Forecast
A19: Licence Fee | B19: B3 | C19: LFt | E19: 2.02070276 | F19: 2.69339614 | G19: 3.162615065 | H19: Licensee Actual/Forecast
A20: Inter TSO Compensation | B20: B4 | C20: ITCt | E20: 3.822243508 | F20: 2.674543756 | G20: 0.4947000781 | H20: Licensee Actual/Forecast
A21: Termination of Bilateral Connection Agreements | B21: B5 | C21: TERMt | D21: 0 | E21: 0 | F21: 0 | G21: 0 | H21: Does not affect TNUoS
A22: SP Transmission Pass-Through | B22: B6 | C22: TSPt | D22: 312.179148 | E22: 295.664557 | F22: 294.623363 | G22: 316.2910792 | H22: 14/15 & 15/16 & 16/17 Charge setting. Later from TSP Calculation.
A23: SHE Transmission Pass-Through | B23: B7 | C23: TSHt | D23: 213.9595177 | E23: 338.2073022 | F23: 322.8363165 | G23: 319.4421591 | H23: 14/15 & 15/16 & 16/17 Charge setting. Later from TSH Calculation.
A24: Offshore Transmission Pass-Through | B24: B8 | C24: TOFTOt | D24: 218.3803735 | E24: 248.3569992 | F24: 260.7893126 | G24: 293.0215591 | H24: 14/15 & 15/16 & 16/17 Charge setting. Later from OFTO Calculation.
A25: Embedded Offshore Pass-Through | B25: B9 | C25: OFETt | D25: 0.4373360836 | E25: 0.6494191446 | F25: 0.6544976174 | G25: 0.6537209541 | H25: Licensee Actual/Forecast
A26: Pass-Through Items [B=B1+B2+B3+B4+B5+B6+B7+B8+B9] | B26: B | C26: PTt | D26: 745.1003286 | E26: 889.9688923 | F26: 885.8620259 | G26: 935.7341014
A27: Reliability Incentive Adjustment | B27: C1 | C27: RIt | E27: 2.36156378 | F27: 3.92064433 | G27: 4.006316801 | H27: Licensee Actual/Forecast/Budget
A28: Stakeholder Satisfaction Adjustment | B28: C2 | C28: SSOt | E28: 8.693059732 | F28: 10.12348826 | G28: 8.574119333 | H28: Licensee Actual/Forecast/Budget
A29: Sulphur Hexafluoride (SF6) Gas Emissions Adjustment | B29: C3 | C29: SFIt | E29: 2.809201974 | F29: 2.661674685 | G29: 3.027001345 | H29: Licensee Actual/Forecast/Budget
A30: Awarded Environmental Discretionary Rewards | B30: C4 | C30: EDRt | E30: 0 | F30: 2.0215575 | G30: 0 | H30: Only includes EDR awarded to licensee to date
A31: Outputs Incentive Revenue [C=C1+C2+C3+C4] | B31: C | C31: OIPt | D31: 0 | E31: 13.86382549 | F31: 18.72736477 | G31: 15.60743748
A32: Network Innovation Allowance | B32: D | C32: NIAt | D32: 10.91597751 | E32: 10.55551673 | F32: 10.61146073 | G32: 10.11736027 | H32: Licensee Actual/Forecast/Budget
A33: Network Innovation Competition | B33: E | C33: NICFt | D33: 17.849214 | E33: 18.76065592 | F33: 44.85487989 | G33: 40.5 | H33: Sum of NICF awards determined by Ofgem/Forecast by National Grid
A34: Future Environmental Discretionary Rewards | B34: F | C34: EDRt | F34: 0 | G34: 2 | H34: Sum of future EDR awards forecast by National Grid
A35: Transmission Investment for Renewable Generation | B35: G | C35: TIRGt | D35: 15.99732651 | E35: 15.69901683 | F35: 0 | G35: 0 | H35: Licensee Actual/Forecast
A36: Scottish Site Specific Adjustment | B36: H | C36: DISt | D36: 1.984914151 | E36: 0.791 | F36: 2.864922714 | G36: 4.89570063 | H36: Licensee Actual/Forecast
A37: Scottish Terminations Adjustment | B37: I | C37: TSt | D37: -0.28187454 | E37: 0.101547 | F37: 0.07292861 | G37: 0 | H37: Licensee Actual/Forecast
A38: Correction Factor | B38: K | C38: -Kt | E38: 56.42377823 | F38: 103.977966 | G38: 104.8978038 | H38: Calculated by Licensee
A39: Maximum Revenue [M= A+B+C+D+E+F+G+H+I+K] | B39: M | C39: TOt | D39: 2524.26073 | E39: 2681.643079 | F39: 2751.330395 | G39: 2719.682605
A40: Termination Charges | B40: B5 | D40: 0 | E40: 0 | F40: 0 | G40: 0
A41: Pre-vesting connection charges | B41: P | D41: 46.95416236 | E41: 44.95520412 | F41: 42.67704326 | G41: 44.09 | H41: Licensee Actual/Forecast
A42: TNUoS Collected Revenue [T=M-B5-P] | B42: T | D42: 2477.306567 | E42: 2636.687875 | F42: 2708.653351 | G42: 2675.592605
A43: Final Collected Revenue | B43: U | C43: TNRt | D43: 2375.852495 | H43: Licensee Actual/Forecast
A44: Forecast percentage change to Maximum Revenue M | D44: 0 | E44: 0.0623478976 | F44: 0.02598679751 | G44: -0.01150272235
A45: Forecast percentage change to TNUoS Collected Revenue T | D45: 0 | E45: 0.06433652978 | F45: 0.02729389293 | G45: -0.01220560259
A47: Notes:
A48: All monies are nominal 'money of the day' prices unless stated otherwise
A49: Licensee forecasts and budgets are subject to change especially where they are influenced by external stakeholders
A50: Greyed out cells are either calculated or not applicable in the year concerned due to the way the licence formula are constructed
A51: NIC payments to all Transmission Owners are inlcuded in National Grid Maximum Revenue and are included here
A52: 2014/15 and 2015/16 pass through to other networks is based on forecast at time of tariff setting

Sheet T20
A1: Table 20 - SP Transmission Revenue Forecast
A3: Scottish Power Transmission Revenue Forecast | D3: Updated: | E3: October
A4: Description | C4: Licence Term | D4: Yr t-1 | E4: Yr t | F4: Yr t+1 | H4: Notes
D5: 2014/15 | E5: 2015/16 | F5: 2016/17
A6: Actual RPI | D6: 256.667 | F6: 0 | H6: April to March average
A7: RPI Actual | C7: RPIAt | D7: 1.19 | F7: 0 | H7: Office of National Statistics
A8: Assumed Interest Rate | C8: It | D8: 0.005 | E8: 0.00625 | F8: 0.01125 | G8: 0.002 | H8: National Grid forecast
A9: Opening Base Revenue Allowance (2009/10 prices) | B9: A1 | C9: PUt | D9: 236.95 | E9: ` | F9: 244.655 | G9: 249.439
A10: Price Control Financial Model Iteration Adjustment | B10: A2 | C10: MODt | D10: 6.2 | E10: -20.3 | F10: -21.8 | G10: -13.545
A11: RPI True Up | B11: A3 | C11: TRUt | D11: -0.1 | E11: 0.847 | F11: -3.85 | G11: -5.809474273
A12: RPI Forecast | B12: A4 | C12: RPIFt | D12: 1.2051 | E12: 1.2266 | F12: 1.2327 | G12: 1.261 | H12: National Grid forecast
A13: Base Revenue [A=(A1+A2+A3)*A4] | B13: A | C13: BRt | D13: 292.899555 | E13: -23.8610498 | F13: 269.9674635 | G13: 290.1365869
A14: Pass-Through Business Rates | B14: B1 | C14: RBt | D14: 0 | E14: -20.24 | F14: -4.5 | G14: -4.664521674
A15: Temporary Physical Disconnection | B15: B2 | C15: TPDt | D15: 0 | E15: 0 | F15: 0 | G15: 0
A16: Pass-Through Items [B=B1+B2] | B16: B | C16: PTt | D16: 0 | E16: -20.24 | F16: -4.5 | G16: -4.664521674
A17: Reliability Incentive Adjustment | B17: C1 | C17: RIt | D17: 0 | E17: 2.555035068 | F17: 3 | G17: 2.90749196
A18: Stakeholder Satisfaction Adjustment | B18: C2 | C18: SSOt | D18: 0 | E18: 1.69690348 | F18: 2.1 | G18: 0.9212482127
A19: Sulphur Hexafluoride (SF6) Gas Emissions Adjustment | B19: C3 | C19: SFIt | D19: 0 | E19: -0.1630297099 | F19: 0.1 | G19: 0.1902690847
A20: Awarded Environmental Discretionary Rewards | B20: C4 | C20: EDRt | D20: 0 | E20: 0 | F20: 0 | G20: 0.5050125
A21: Financial Incentive for Timely Connections Output | B21: C5 | C21: -CONADJt | D21: 0 | E21: -0.05530976141 | F21: 0 | G21: 0
A22: Outputs Incentive Revenue [C=C1+C2+C3+C4+C5] | B22: C | C22: OIPt | D22: 0 | E22: 4.033599076 | F22: 5.2 | G22: 4.524021757
A23: Network Innovation Allowance | B23: D | C23: NIAt | D23: 0.7 | E23: 1 | F23: 1 | G23: 1.0575
A24: Transmission Investment for Renewable Generation | B24: G | C24: TIRGt | D24: 32.1615935 | E24: 38.09 | F24: 31.7 | G24: 32.7806231
A25: Correction Factor | B25: K | C25: -Kt | D25: 0 | E25: -4.94 | F25: 3 | G25: 3.824869078
A26: Maximum Revenue (M= A+B+C+D+G+J+K] | B26: M | C26: TOt | D26: 325.7611485 | E26: -5.917450724 | F26: 306.44 | G26: 327.6590792
A27: Excluded Services | B27: P | C27: EXCt | D27: 7.7 | E27: 8 | F27: 9.4 | G27: 11.332 | H27: Post BETTA Connection Charges
A28: Site Specifc Charges | B28: S | C28: EXSt | D28: 18.5 | E28: 18.8 | F28: 21.8 | G28: 22.7 | H28: Pre & Post BETTA Connection Charges
A29: TNUoS Collected Revenue (T=M+P-S) | B29: T | C29: TSPt | D29: 314.9611485 | E29: -16.71745072 | F29: 294.04 | G29: 316.2910792 | H29: General System Charge
A30: Final Collected Revenue | B30: U | C30: TNRt | D30: 312.2 | E30: 295.6 | F30: 293.9674635
A31: Forecast percentage change to TNUoS Collected Revenue T | D31: 0 | E31: -1.053077819 | F31: -18.58880614 | G31: 0.07567364712
A33: Notes:
A34: All monies are nominal 'money of the day' prices unless stated otherwise
A35: Licensee forecasts and budgets are subject to change especially where they are influenced by external stakeholders
A36: Greyed out cells are either calculated or not applicable in the year concerned due to the way the licence formula are constructed
A37: NIC payments are not included as they do not form part of SPT Maximum Revenue
A39: Commentary
A40: All reasonable care has been taken in the preparation of these illustrative tables and the data therein. SPT offers this data without prejudice and cannot be held responsible for any loss that might be attributed to the use of this data. SPT does not accept or assume responsibility for the use of this information by any person or any person to whom this information is shown or any person to whom this information otherwise becomes available.
A42: The base revenue forecasts for the RIIO-ET1 period (2014/15 to 2018/19, inclusive) reflect the figures authorised by Ofgem in the the RIIO-ET1 Final Proposals.
A43: Within the bounds of commercial confidentiality, this forecast provides as much information as possible.
A45: This forecast contains as much information as can be currently made available. Generally, allowances determined by Ofgem are shown; and we also include forecasts for anticipated future Ofgem determinations in respect of the Iteration adjustment reflecting our latest view of totex, changes to allowed totex and cost of debt.
A46: This respects commercial confidentiality and disclosure considerations.
A48: Note that actual revenues may vary from those currently forecast.
A50: All £ figures are in money of the day
A52: Information provided in £m to one decimal place
A54: Assumptions
A55: It is assumed that there will be one set of price changes per year effective on 1st April.

Sheet T21
A1: Table 21 - SHE Transmission Revenue Forecast
A3: SHE Transmission Revenue Forecast | D3: Updated: | E3: October
A4: Description | C4: Licence Term | D4: Yr t-1 | E4: Yr t | F4: Yr t+1 | H4: Notes
D5: 2014/15 | E5: 2015/16 | F5: 2016/17 | G5: 2017/18
A6: Actual RPI | D6: 256.6666667 | F6: 0 | H6: April to March average
A7: RPI Actual | C7: RPIAt | D7: 1.19 | F7: 0 | H7: Office of National Statistics
A8: Assumed Interest Rate | C8: It | D8: 0.005 | E8: 0.00625 | F8: 0.01125 | G8: 0.01125 | H8: National Grid forecast
A9: Opening Base Revenue Allowance (2009/10 prices) | B9: A1 | C9: PUt | D9: 111.515 | E9: 124.139 | F9: 123.635 | G9: 119.597 | H9: From Licence
A10: Price Control Financial Model Iteration Adjustment | B10: A2 | C10: MODt | D10: 8.7 | E10: 85.2 | F10: 87.612 | G10: 51.6
A11: RPI True Up | B11: A3 | C11: TRUt | D11: -0.002 | E11: 0.522 | F11: -2.565 | G11: -6.077
A12: RPI Forecast | B12: A4 | C12: RPIFt | D12: 1.205081953 | E12: 1.226649302 | F12: 1.232732984 | G12: 1.261 | H12: SHET figures changed to NG forecast so all Tos are consistent.
A13: Base Revenue [A=(A1+A2+A3)*A4] | B13: A | C13: BRt | D13: 144.8665168 | E13: 257.4258492 | F13: 257.2491845 | G13: 208.21632
A14: Pass-Through Business Rates | B14: B1 | C14: RBt | D14: 0 | E14: -0.697 | F14: -15.969 | G14: 12.225
A15: Temporary Physical Disconnection | B15: B2 | C15: TPDt | D15: 0 | E15: 0.555 | F15: 0.132 | G15: 0.103
A16: Pass-Through Items [B=B1+B2] | B16: B | C16: PTt | D16: 0 | E16: -0.142 | F16: -15.837 | G16: 12.328
A17: Reliability Incentive Adjustment | B17: C1 | C17: RIt | E17: 1.178 | F17: 0.189 | G17: 1.644
A18: Stakeholder Satisfaction Adjustment | B18: C2 | C18: SSOt | E18: 1.605 | F18: 2.285 | G18: 0.855
A19: Sulphur Hexafluoride (SF6) Gas Emissions Adjustment | B19: C3 | C19: SFIt | E19: -0.271 | F19: -0.172 | G19: -0.059
A20: Awarded Environmental Discretionary Rewards | B20: C4 | C20: EDRt | E20: 0 | F20: 0 | G20: 0
A21: Financial Incentive for Timely Connections Output | B21: C5 | C21: -CONADJt | E21: 0 | F21: 0 | G21: 0
A22: Outputs Incentive Revenue [C=C1+C2+C3+C4+C5] | B22: C | C22: OIPt | D22: 0 | E22: 2.512 | F22: 2.302 | G22: 2.44
A23: Network Innovation Allowance | B23: D | C23: NIAt | D23: 1.257 | E23: 1.674 | F23: 1.674 | G23: 1.44
A24: Transmission Investment for Renewable Generation | B24: G | C24: TIRGt | D24: 72.198 | E24: 81.261 | F24: 79.887 | G24: 83.524
A25: Compensatory Payments Adjustment | B25: J | C25: SHCPt | D25: 0 | E25: 0.398 | F25: 0 | G25: 0
A26: Correction Factor | B26: K | C26: -Kt | E26: -1.668 | F26: 0.942 | G26: -2.114
A27: Maximum Revenue (M= A+B+C+D+G+J+K] | B27: M | C27: TOt | D27: 218.3215168 | E27: 341.4608492 | F27: 326.217 | G27: 305.83432
A28: Excluded Services | B28: P | C28: EXCt | D28: 0 | E28: 0 | F28: 0 | G28: 17.01605341 | H28: Post BETTA Connection Charges
A29: Site Specifc Charges | B29: S | C29: EXSt | D29: 3.465 | E29: 3.472 | F29: 3.489219709 | G29: 3.40821434 | H29: Post-Vesting, Pre-BETTA Connection Charges
A30: TNUoS Collected Revenue (T=M+P-S) | B30: T | C30: TSHt | D30: 214.8565168 | E30: 337.9888492 | F30: 322.7277803 | G30: 319.4421591 | H30: General System Charge
A31: Final Collected Revenue | B31: U | C31: TNRt | D31: 217.425 | E31: 0 | F31: 0 | G31: 0
A32: Forecast percentage change to TNUoS Collected Revenue T | D32: 0 | E32: 0.5730909829 | F32: -0.04515203496 | G32: 0.009318836895
A34: Notes:
A35: All monies are nominal 'money of the day' prices unless stated otherwise
A36: Licensee forecasts and budgets are subject to change especially where they are influenced by external stakeholders
A37: Greyed out cells are either calculated or not applicable in the year concerned due to the way the licence formula are constructed
A38: NIC payments are not included as they do not form part of SHET Maximum Revenue
A40: Commentary
A41: All reasonable care has been taken in the preparation of these illustrative tables and the data therein. SHET offers these data without prejudice and cannot be held responsible for any loss that might be attributed to the use of these data. SHET does not accept or assume responsibility for the use of this information by any person or any person to whom this information is shown or any person to whom this information otherwise becomes available.
A43: The base revenue forecasts for the RIIO-ET1 period (2014/15 to 2018/19, inclusive) reflect the figures authorised by Ofgem in the RIIO-ET1 Final Proposals.
A44: Within the bounds of commercial confidentiality, this forecast provides as much information as possible.
A46: This forecast contains as much information as can be currently made available. Generally, allowances determined by Ofgem are shown; whilst those for which Ofgem determinations are expected are not.
A47: This respects commercial confidentiality and disclosure considerations.
A49: Note that actual revenues may vary from those currently forecast.
A51: All £ figures are in money of the day
A53: Information provided in £m to one decimal place
A55: Assumptions
A56: It is assumed that there will be one set of price changes per year effective on 1st April.

Sheet T22
A1: Table 22 - Offshore Revenues
A3: Offshore Transmission Revenue Forecast | B3: 2016-10-14
A4: Description | B4: Yr t-1 | C4: Yr t | D4: Yr t+1 | E4: Yr t+2 | F4: Notes
A5: Regulatory Year | B5: 2014/15 | C5: 2015/16 | D5: 2016/17 | E5: 2017/18
A6: Barrow | B6: 5.475948387 | C6: 5.605119166 | D6: 5.656283019 | E6: 5.930055187
A7: Gunfleet | B7: 6.853152423 | C7: 7.014459018 | D7: 7.080594599 | E7: 7.50614119
A8: Walney 1 | B8: 12.49105951 | C8: 12.78636456 | D8: 12.90184157 | E8: 13.12268999
A9: Robin Rigg | B9: 7.709472064 | C9: 7.891440662 | D9: 7.993308366 | E9: 8.531297514
A10: Walney 2 | B10: 12.92696073 | C10: 13.23221075 | D10: 12.51589741 | E10: 13.57905808
A11: Sheringham Shoal | B11: 18.92412411 | C11: 19.49893387 | D11: 19.72766462 | E11: 20.00984961
A12: Ormonde | B12: 11.57050189 | C12: 11.84309117 | D12: 11.95215008 | E12: 12.29398863
A13: Greater Gabbard | B13: 25.9995199 | C13: 26.61925023 | D13: 26.87143257 | E13: 27.31065486
A14: London Array | B14: 37.57295282 | C14: 39.2120985 | D14: 39.49870272 | E14: 38.44126241
A15: Thanet | B15: 78.85668167 | C15: 17.51705273 | D15: 15.69984448 | E15: 17.89098914
A16: Lincs | C16: 25.56339384 | D16: 26.68704214 | E16: 27.42017646
A17: Gwynt y mor | C17: 26.28358513 | D17: 23.6461166 | E17: 27.02351551
A18: West of Duddon Sands | C18: 35.2899996 | D18: 21.27389291 | E18: 21.93963303
A19: Humber Gateway | B19: 0 | D19: 29.28454151 | E19: 12.74540626 | F19: Current revenues plus indexation
A20: Westermost Rough | B20: 0 | E20: 12.98666786
A21: Forecast to asset transfer to OFTO in 2017/18 | E21: 26.29017338 | F21: National Grid Forecast
A22: Offshore Transmission Pass-Through (B7) | B22: 218.3803735 | C22: 248.3569992 | D22: 260.7893126 | E22: 293.0215591
A26: Notes:
A27: All monies are nominal 'money of the day' prices unless stated otherwise
A28: Licensee forecasts and budgets are subject to change especially where they are influenced by external stakeholders

Sheet T23 TEC changes
A1: Table 23 - Generation TEC Changes
B2: Power Station | C2: Node | D2: MW Change | E2: Zone
B3: Barry Power Station | C3: ABTH20 | D3: 142 | E3: 21
B4: Clyde North | C4: CLYN2Q | D4: 36.7 | E4: 11
B5: Clyde South | C5: CLYS2R | D5: -54 | E5: 11
B6: Crookedstane Windfarm | C6: CLYS2R | D6: 9.2 | E6: 11
B7: Dungeness B | C7: DUNG40 | D7: 10 | E7: 24
B8: Dunmaglass Wind Farm | C8: DUNM10 | D8: -94 | E8: 1
B9: Earlshaugh Wind Farm | C9: EHAU10 | D9: -55 | E9: 11
B10: Keadby | C10: KEAD40 | D10: 20 | E10: 16
B11: Keadby II | C11: KEAD40 | D11: -710 | E11: 16
B12: Kings Lynn A | C12: WALP40_EME | D12: -281 | E12: 17
B13: Whitelee Extension | C13: WLEX20 | D13: -32 | E13: 10

Sheet T24
A1: Table 24 - Demand Profiles
C3: 2017/18 June | G3: 2017/18 October
A4: Zone | B4: Zone Name | C4: Locational Model Demand (MW) | D4: Tariff model Peak Demand (MW) | E4: Tariff Model HH Demand (MW) | F4: Tariff model NHH Demand (TWh) | G4: Locational Model Demand (MW) | H4: Tariff model Peak Demand (MW) | I4: Tariff Model HH Demand (MW) | J4: Tariff model NHH Demand (TWh)
A5: 1 | B5: Northern Scotland | C5: 679 | D5: 674.9237016 | E5: -501.2810037 | F5: 0.690656009 | G5: 683.4116347 | H5: 674.9237016 | I5: -501.2810037 | J5: 0.690656009
A6: 2 | B6: Southern Scotland | C6: 2967.937135 | D6: 3339.467373 | E6: 713.9991668 | F6: 1.63700355 | G6: 3272.278168 | H6: 3339.467373 | I6: 713.9991668 | J6: 1.63700355
A7: 3 | B7: Northern | C7: 2604 | D7: 2271.575867 | E7: 616.8198045 | F7: 1.124312177 | G7: 2608.619443 | H7: 2271.575867 | I7: 616.8198045 | J7: 1.124312177
A8: 4 | B8: North West | C8: 3503 | D8: 4029.546608 | E8: 1421.969005 | F8: 1.912311754 | G8: 3504.435597 | H8: 4029.546608 | I8: 1421.969005 | J8: 1.912311754
A9: 5 | B9: Yorkshire | C9: 4650 | D9: 3687.662146 | E9: 1334.078913 | F9: 1.754188497 | G9: 4650.761784 | H9: 3687.662146 | I9: 1334.078913 | J9: 1.754188497
A10: 6 | B10: N Wales & Mersey | C10: 2687 | D10: 2457.444444 | E10: 623.3851081 | F10: 1.21604186 | G10: 2687.625742 | H10: 2457.444444 | I10: 623.3851081 | J10: 1.21604186
A11: 7 | B11: East Midlands | C11: 5138 | D11: 4574.137635 | E11: 1596.876253 | F11: 2.149956678 | G11: 5137.05 | H11: 4574.137635 | I11: 1596.876253 | J11: 2.149956678
A12: 8 | B12: Midlands | C12: 4500 | D12: 4313.668488 | E12: 1754.313375 | F12: 1.921898641 | G12: 4497.62 | H12: 4313.668488 | I12: 1754.313375 | J12: 1.921898641
A13: 9 | B13: Eastern | C13: 5848 | D13: 6093.153171 | E13: 1818.441307 | F13: 3.037684306 | G13: 5849.550079 | H13: 6093.153171 | I13: 1818.441307 | J13: 3.037684306
A14: 10 | B14: South Wales | C14: 1967 | D14: 1724.641692 | E14: 653.0042958 | F14: 0.8122831388 | G14: 1968.449129 | H14: 1724.641692 | I14: 653.0042958 | J14: 0.8122831388
A15: 11 | B15: South East | C15: 3627 | D15: 3486.957038 | E15: 1107.568291 | F15: 1.822334154 | G15: 3626.196857 | H15: 3486.957038 | I15: 1107.568291 | J15: 1.822334154
A16: 12 | B16: London | C16: 5210 | D16: 4778.776393 | E16: 2470.28074 | F16: 1.800673955 | G16: 5317.111433 | H16: 4778.776393 | I16: 2470.28074 | J16: 1.800673955
A17: 13 | B17: Southern | C17: 5938.425481 | D17: 5334.770147 | E17: 2094.656027 | F17: 2.508253664 | G17: 5548.748864 | H17: 5334.770147 | I17: 2094.656027 | J17: 2.508253664
A18: 14 | B18: South Western | C18: 2604 | D18: 2334.093293 | E18: 703.0938252 | F18: 1.226226307 | G18: 2604.24217 | H18: 2334.093293 | I18: 703.0938252 | J18: 1.226226307
A19: Total | C19: =SUM(C5:C18) -> 51923.36262 | D19: 49100.818 | E19: 16407.20511 | F19: =SUM(F5:F18) -> 23.61382469 | G19: 51956.1009 | H19: 49100.818 | I19: 16407.20511 | J19: 23.61382469

Sheet T27
A1: Table 27 - Demand Tariffs with breakdown of peak security and year round elements
B3: Zone | C3: Zone Name | D3: Peak Security Tariff | E3: Year Round Tariff | F3: Residual | G3: Small Generators Discount | H3: HH Demand Tariff (£/kW)
B4: 1 | C4: Northern Scotland | D4: 0.4909386501 | E4: -18.26011396 | F4: 46.60734586 | G4: 0.5280356435 | H4: 29.3662062
B5: 2 | C5: Southern Scotland | D5: -0.8572313153 | E5: -16.08469097 | F5: 46.60734586 | G5: 0.5280356435 | H5: 30.19345922
B6: 3 | C6: Northern | D6: -2.701625647 | E6: -5.361731297 | F6: 46.60734586 | G6: 0.5280356435 | H6: 39.07202456
B7: 4 | C7: North West | D7: -0.7129454454 | E7: -1.872772904 | F7: 46.60734586 | G7: 0.5280356435 | H7: 44.54966316
B8: 5 | C8: Yorkshire | D8: -2.586943276 | E8: -0.2781795101 | F8: 46.60734586 | G8: 0.5280356435 | H8: 44.27025872
B9: 6 | C9: N Wales & Mersey | D9: -1.382950139 | E9: 0.7493667959 | F9: 46.60734586 | G9: 0.5280356435 | H9: 46.50179817
B10: 7 | C10: East Midlands | D10: -2.022546001 | E10: 2.196476798 | F10: 46.60734586 | G10: 0.5280356435 | H10: 47.30931231
B11: 8 | C11: Midlands | D11: -1.148168975 | E11: 3.073767214 | F11: 46.60734586 | G11: 0.5280356435 | H11: 49.06097975
B12: 9 | C12: Eastern | D12: 1.031810472 | E12: 0.6721757791 | F12: 46.60734586 | G12: 0.5280356435 | H12: 48.83936776
B13: 10 | C13: South Wales | D13: -5.934979845 | E13: 4.019912655 | F13: 46.60734586 | G13: 0.5280356435 | H13: 45.22031432
B14: 11 | C14: South East | D14: 3.825072122 | E14: 0.7253467941 | F14: 46.60734586 | G14: 0.5280356435 | H14: 51.68580042
B15: 12 | C15: London | D15: 5.016818575 | E15: 1.986968049 | F15: 46.60734586 | G15: 0.5280356435 | H15: 54.13916813
B16: 13 | C16: Southern | D16: 1.843383273 | E16: 3.842342996 | F16: 46.60734586 | G16: 0.5280356435 | H16: 52.82110778
B17: 14 | C17: South Western | D17: -0.6947173262 | E17: 5.173816273 | F17: 46.60734586 | G17: 0.5280356435 | H17: 51.61448046
